[Event "Open Nuevo Centro. Jornada 1"]
[Site "Chess.com"]
[Date "2020.06.19"]
[Round "1"]
[White "Campos Gambuti, Luis Mar�a"]
[Black "Gimenez Sanchis, Jose Antonio"]
[Result "1-0"]
[WhiteElo "2322"]
[BlackElo "1423"]
[TimeControl "180+2"]
[EndTime "10:32:22 PDT"]
[Termination "Victoria de Tangalangafacv por abandono"]

1. d4 {[%clk 0:02:55.5]} 1... d5 {[%clk 0:03:00]} 2. Nf3 {[%clk 0:02:54.8]} 2...
Nf6 {[%clk 0:03:00.8]} 3. c4 {[%clk 0:02:56.4]} 3... e6 {[%clk 0:03:01.6]} 4.
Nc3 {[%clk 0:02:57.9]} 4... Be7 {[%clk 0:03:00.2]} 5. Bf4 {[%clk 0:02:59.3]}
5... O-O {[%clk 0:02:58.7]} 6. e3 {[%clk 0:03:00.7]} 6... c5 {[%clk 0:02:59.8]}
7. cxd5 {[%clk 0:03:00.7]} 7... exd5 {[%clk 0:03:00.2]} 8. Be2 {[%clk
0:02:58.5]} 8... Nc6 {[%clk 0:03:00.3]} 9. O-O {[%clk 0:02:59.1]} 9... cxd4
{[%clk 0:02:59.8]} 10. Nxd4 {[%clk 0:02:59.3]} 10... a6 {[%clk 0:02:57.3]} 11.
Rc1 {[%clk 0:02:58.6]} 11... Bf5 {[%clk 0:02:54.6]} 12. Nxf5 {[%clk 0:02:55.5]}
12... Bb4 {[%clk 0:02:50]} 13. Bg5 {[%clk 0:02:53]} 13... h6 {[%clk 0:02:48.4]}
14. Bh4 {[%clk 0:02:51.3]} 14... Rc8 {[%clk 0:02:38.6]} 15. a3 {[%clk
0:02:46.1]} 15... Be7 {[%clk 0:02:33.1]} 16. Nxe7+ {[%clk 0:02:45.5]} 16... Qxe7
{[%clk 0:02:32.4]} 17. Nxd5 {[%clk 0:02:46.1]} 1

[Event "Open Nuevo Centro. Jornada 1"]
[Site "Chess.com"]
[Date "2020.06.19"]
[Round "1"]
[White "Mena Sancho, Angel"]
[Black "Cin� Asensio, Luca "]
[Result "1-0"]
[WhiteElo "1510"]
[BlackElo "398"]
[TimeControl "180+2"]
[EndTime "10:32:41 PDT"]
[Termination "Victoria de amena6 por jaque mate"]

1. e4 {[%clk 0:03:01.2]} 1... e5 {[%clk 0:03:00.3]} 2. Nf3 {[%clk 0:03:01.8]}
2... Nc6 {[%clk 0:02:59]} 3. Bc4 {[%clk 0:03:02.3]} 3... Bc5 {[%clk 0:02:58.3]}
4. b4 {[%clk 0:03:02.5]} 4... Bxb4 {[%clk 0:02:57.1]} 5. c3 {[%clk 0:03:03.6]}
5... Bc5 {[%clk 0:02:57.6]} 6. d4 {[%clk 0:03:04.3]} 6... exd4 {[%clk
0:02:57.6]} 7. cxd4 {[%clk 0:03:04.8]} 7... Bxd4 {[%clk 0:02:57.7]} 8. Nxd4
{[%clk 0:03:02.3]} 8... Nxd4 {[%clk 0:02:57.6]} 9. Qxd4 {[%clk 0:03:02.9]} 9...
Nf6 {[%clk 0:02:58]} 10. e5 {[%clk 0:03:01.1]} 10... c5 {[%clk 0:02:52]} 11. Qf4
{[%clk 0:02:42.5]} 11... O-O {[%clk 0:02:50.5]} 12. exf6 {[%clk 0:02:38.1]}
12... gxf6 {[%clk 0:02:49.5]} 13. O-O {[%clk 0:02:37.7]} 13... a6 {[%clk
0:02:41.2]} 14. Bd3 {[%clk 0:02:25.9]} 14... Kg7 {[%clk 0:02:38.8]} 15. Qg4+
{[%clk 0:02:24.8]} 15... Kh8 {[%clk 0:02:38.8]} 16. Qh5 {[%clk 0:02:24]} 16...
Kg7 {[%clk 0:02:36.3]} 17. Qxh7# {[%clk 0:02:23.9]} 1

[Event "Open Nuevo Centro. Jornada 1"]
[Site "Chess.com"]
[Date "2020.06.19"]
[Round "1"]
[White "Saiz Sapena, Veronica"]
[Black "Montesinos Diaz, Luis"]
[Result "0-1"]
[WhiteElo "1591"]
[BlackElo "1468"]
[TimeControl "180+2"]
[EndTime "10:32:52 PDT"]
[Termination "Victoria de Gwiso_06 por abandono"]

1. e4 {[%clk 0:02:57.7]} 1... c6 {[%clk 0:02:59]} 2. Nf3 {[%clk 0:02:53.2]} 2...
d5 {[%clk 0:02:59.4]} 3. exd5 {[%clk 0:02:50.6]} 3... cxd5 {[%clk 0:02:58]} 4.
Be2 {[%clk 0:02:51.2]} 4... Nc6 {[%clk 0:02:49]} 5. d4 {[%clk 0:02:51.5]} 5...
Nf6 {[%clk 0:02:48.3]} 6. O-O {[%clk 0:02:52.1]} 6... Bg4 {[%clk 0:02:48.7]} 7.
h3 {[%clk 0:02:52.8]} 7... Bh5 {[%clk 0:02:49.3]} 8. c3 {[%clk 0:02:52.7]} 8...
e6 {[%clk 0:02:48.5]} 9. Bg5 {[%clk 0:02:52.6]} 9... Be7 {[%clk 0:02:44.5]} 10.
Nbd2 {[%clk 0:02:52]} 10... O-O {[%clk 0:02:42.2]} 11. Qb3 {[%clk 0:02:46.8]}
11... Qc7 {[%clk 0:02:33.9]} 12. Rfe1 {[%clk 0:02:46.5]} 12... a6 {[%clk
0:02:17.6]} 13. a4 {[%clk 0:02:44.2]} 13... Na5 {[%clk 0:02:14.5]} 14. Qa3
{[%clk 0:02:42.8]} 14... Bxa3 {[%clk 0:02:13.4]} 15. Rxa3 {[%clk 0:02:41.1]}
15... Nc4 {[%clk 0:02:08.2]} 0

[Event "Open Nuevo Centro. Jornada 1"]
[Site "Chess.com"]
[Date "2020.06.19"]
[Round "1"]
[White "Elenkov Olmo, Ivan"]
[Black "Birnoveanu, Petru"]
[Result "0-1"]
[WhiteElo "798"]
[BlackElo "1581"]
[TimeControl "180+2"]
[EndTime "10:33:09 PDT"]
[Termination "Victoria de piculet por jaque mate"]

1. e4 {[%clk 0:03:01.3]} 1... Nc6 {[%clk 0:02:59.5]} 2. Nc3 {[%clk 0:02:59.4]}
2... e5 {[%clk 0:02:59.3]} 3. Nf3 {[%clk 0:02:58.1]} 3... Bc5 {[%clk 0:02:58.5]}
4. Bc4 {[%clk 0:02:51.7]} 4... d6 {[%clk 0:02:56.5]} 5. d3 {[%clk 0:02:49.4]}
5... a6 {[%clk 0:02:56.3]} 6. Ng5 {[%clk 0:02:42.1]} 6... Nh6 {[%clk 0:02:55.2]}
7. Nf3 {[%clk 0:02:41.2]} 7... Bg4 {[%clk 0:02:30.2]} 8. Bxh6 {[%clk 0:02:40.1]}
8... gxh6 {[%clk 0:02:29.5]} 9. h3 {[%clk 0:02:36.8]} 9... Be6 {[%clk
0:02:21.6]} 10. Ng1 {[%clk 0:02:25]} 10... Bxc4 {[%clk 0:02:19.9]} 11. dxc4
{[%clk 0:02:23.6]} 11... Qg5 {[%clk 0:02:11.6]} 12. Nf3 {[%clk 0:02:18.7]} 12...
Qxg2 {[%clk 0:02:07.6]} 13. Rg1 {[%clk 0:02:05]} 13... Qxf2# {[%clk 0:02:06]}
0

[Event "Open Nuevo Centro. Jornada 1"]
[Site "Chess.com"]
[Date "2020.06.19"]
[Round "1"]
[White "Donate Peris, Jose Manuel"]
[Black "Torres Biosca, Roberto"]
[Result "1-0"]
[WhiteElo "1592"]
[BlackElo "793"]
[TimeControl "180+2"]
[EndTime "10:33:46 PDT"]
[Termination "Victoria de cheryme por jaque mate"]

1. d4 {[%clk 0:03:00.5]} 1... d5 {[%clk 0:02:59.4]} 2. c4 {[%clk 0:03:00.7]}
2... dxc4 {[%clk 0:02:59.3]} 3. e3 {[%clk 0:03:00.2]} 3... Nc6 {[%clk
0:02:54.2]} 4. Bxc4 {[%clk 0:03:00.4]} 4... Nf6 {[%clk 0:02:53]} 5. Nc3 {[%clk
0:03:00.3]} 5... e6 {[%clk 0:02:52]} 6. a3 {[%clk 0:02:59.3]} 6... Bd6 {[%clk
0:02:48]} 7. Nf3 {[%clk 0:02:59.1]} 7... Bd7 {[%clk 0:02:48.1]} 8. e4 {[%clk
0:02:55.3]} 8... O-O {[%clk 0:02:44.9]} 9. e5 {[%clk 0:02:55.9]} 9... Bxe5
{[%clk 0:02:45]} 10. dxe5 {[%clk 0:02:55.9]} 10... Ng4 {[%clk 0:02:41.7]} 11.
O-O {[%clk 0:02:54.7]} 11... f6 {[%clk 0:02:34.9]} 12. exf6 {[%clk 0:02:51.4]}
12... Qxf6 {[%clk 0:02:33.8]} 13. Bg5 {[%clk 0:02:47.2]} 13... Qf5 {[%clk
0:02:31]} 14. Qxd7 {[%clk 0:02:44.2]} 14... Nd8 {[%clk 0:02:26.2]} 15. Bxd8
{[%clk 0:02:41]} 15... Raxd8 {[%clk 0:02:24]} 16. Qxe6+ {[%clk 0:02:37.1]} 16...
Qxe6 {[%clk 0:02:21.3]} 17. Bxe6+ {[%clk 0:02:37.6]} 17... Kh8 {[%clk
0:02:20.9]} 18. Bxg4 {[%clk 0:02:38]} 18... Rde8 {[%clk 0:02:15.3]} 19. h3
{[%clk 0:02:37.1]} 19... Rg8 {[%clk 0:02:15.3]} 20. Rfe1 {[%clk 0:02:34.1]}
20... Ref8 {[%clk 0:02:15.1]} 21. Be6 {[%clk 0:02:32.5]} 21... Rf7 {[%clk
0:02:12]} 22. Bxf7 {[%clk 0:02:32.2]} 22... Rf8 {[%clk 0:02:12.7]} 23. Ng5
{[%clk 0:02:28.4]} 23... c6 {[%clk 0:02:10.2]} 24. Re8 {[%clk 0:02:28.5]} 24...
h6 {[%clk 0:02:03.9]} 25. Rxf8# {[%clk 0:02:27.5]} 1

[Event "Open Nuevo Centro. Jornada 1"]
[Site "Chess.com"]
[Date "2020.06.19"]
[Round "1"]
[White "Chernikov, Vladimir"]
[Black "Camison Zornoza, Cesar"]
[Result "1-0"]
[WhiteElo "2259"]
[BlackElo "1398"]
[TimeControl "180+2"]
[EndTime "10:35:09 PDT"]
[Termination "Victoria de isla88 por abandono"]

1. b3 {[%clk 0:03:01.3]} 1... Nf6 {[%clk 0:03:00.4]} 2. Bb2 {[%clk 0:03:01.7]}
2... g6 {[%clk 0:03:00.7]} 3. Bxf6 {[%clk 0:03:02.7]} 3... exf6 {[%clk
0:02:58.8]} 4. c4 {[%clk 0:03:02.4]} 4... Bg7 {[%clk 0:02:59.9]} 5. Nc3 {[%clk
0:02:59.7]} 5... f5 {[%clk 0:03:00.8]} 6. Rc1 {[%clk 0:02:57]} 6... O-O {[%clk
0:03:01.4]} 7. g3 {[%clk 0:02:58]} 7... Nc6 {[%clk 0:03:00.7]} 8. Bg2 {[%clk
0:02:58.7]} 8... d6 {[%clk 0:02:59.7]} 9. e3 {[%clk 0:02:59.5]} 9... Be6 {[%clk
0:02:59.9]} 10. Nge2 {[%clk 0:02:59.4]} 10... a5 {[%clk 0:02:55.7]} 11. d4
{[%clk 0:02:59.8]} 11... Bd7 {[%clk 0:02:53.6]} 12. a3 {[%clk 0:02:54.3]} 12...
Qc8 {[%clk 0:02:51]} 13. O-O {[%clk 0:02:45.8]} 13... Ne7 {[%clk 0:02:49.5]} 14.
b4 {[%clk 0:02:42.7]} 14... axb4 {[%clk 0:02:49.7]} 15. axb4 {[%clk 0:02:44.6]}
15... c6 {[%clk 0:02:48.4]} 16. Qb3 {[%clk 0:02:44.3]} 16... Kh8 {[%clk
0:02:46.6]} 17. Nf4 {[%clk 0:02:44.3]} 17... Qc7 {[%clk 0:02:37.2]} 18. b5
{[%clk 0:02:41.8]} 18... c5 {[%clk 0:02:35.6]} 19. Nfd5 {[%clk 0:02:37.8]} 19...
Nxd5 {[%clk 0:02:35.9]} 20. Nxd5 {[%clk 0:02:39.6]} 20... Qd8 {[%clk 0:02:34.8]}
21. dxc5 {[%clk 0:02:36.1]} 21... dxc5 {[%clk 0:02:33.9]} 22. Rfd1 {[%clk
0:02:35.8]} 22... Be6 {[%clk 0:02:29.1]} 23. Nf4 {[%clk 0:02:29.7]} 23... Qe7
{[%clk 0:02:22.3]} 24. h4 {[%clk 0:02:22.9]} 24... Ra7 {[%clk 0:02:21.1]} 25. b6
{[%clk 0:02:20.3]} 25... Ra5 {[%clk 0:02:18.1]} 26. Qd3 {[%clk 0:02:10.7]} 26...
Rfa8 {[%clk 0:02:17.6]} 27. Nxe6 {[%clk 0:02:09.3]} 27... fxe6 {[%clk
0:02:14.7]} 28. Qd7 {[%clk 0:02:09.7]} 28... Re8 {[%clk 0:02:14]} 29. Qxe7
{[%clk 0:02:04.8]} 29... Rxe7 {[%clk 0:02:10.3]} 30. Rd8+ {[%clk 0:02:04.7]}
30... Bf8 {[%clk 0:02:11.2]} 31. Rxf8+ {[%clk 0:02:04.4]} 31... Kg7 {[%clk
0:02:13.1]} 32. Rb8 {[%clk 0:02:05.3]} 32... Kf6 {[%clk 0:02:08]} 33. Rxb7
{[%clk 0:02:04.9]} 33... Re8 {[%clk 0:02:09.1]} 34. Rxh7 {[%clk 0:02:03.6]}
34... Ra2 {[%clk 0:02:05]} 35. Rb1 {[%clk 0:01:59]} 35... Rb8 {[%clk 0:02:01.9]}
36. b7 {[%clk 0:01:59.4]} 36... Ra4 {[%clk 0:02:02.1]} 37. Rc7 {[%clk
0:01:57.8]} 1

[Event "Open Nuevo Centro. Jornada 1"]
[Site "Chess.com"]
[Date "2020.06.19"]
[Round "1"]
[White "Gil Lopez, Alejandro"]
[Black "Ursariu, Nikolas Victor"]
[Result "1-0"]
[WhiteElo "2042"]
[BlackElo "1194"]
[TimeControl "180+2"]
[EndTime "10:35:12 PDT"]
[Termination "Victoria de AglVal0313 por jaque mate"]

1. e4 {[%clk 0:03:00.3]} 1... e5 {[%clk 0:02:59.7]} 2. Nf3 {[%clk 0:03:00.9]}
2... Nc6 {[%clk 0:03:00.2]} 3. Bc4 {[%clk 0:03:01.8]} 3... Bc5 {[%clk
0:02:57.1]} 4. O-O {[%clk 0:03:01.8]} 4... Nf6 {[%clk 0:02:56.8]} 5. d4 {[%clk
0:03:01.7]} 5... exd4 {[%clk 0:02:56.5]} 6. e5 {[%clk 0:03:01.5]} 6... Ng8
{[%clk 0:02:54.3]} 7. Ng5 {[%clk 0:02:59.1]} 7... Qe7 {[%clk 0:02:26.9]} 8. Nxf7
{[%clk 0:02:56.4]} 8... d6 {[%clk 0:02:23.1]} 9. exd6 {[%clk 0:02:52.4]} 9...
cxd6 {[%clk 0:02:20.7]} 10. Nxh8 {[%clk 0:02:53.8]} 10... Nf6 {[%clk 0:02:18.2]}
11. Nf7 {[%clk 0:02:53.5]} 11... Be6 {[%clk 0:02:09.4]} 12. Bxe6 {[%clk
0:02:52.7]} 12... Qxe6 {[%clk 0:02:11.3]} 13. Re1 {[%clk 0:02:52.9]} 13... Qxe1+
{[%clk 0:02:05.3]} 14. Qxe1+ {[%clk 0:02:52.1]} 14... Kxf7 {[%clk 0:02:04.7]}
15. Bg5 {[%clk 0:02:50.5]} 15... h6 {[%clk 0:02:02.3]} 16. Bxf6 {[%clk
0:02:50.1]} 16... gxf6 {[%clk 0:02:01.5]} 17. Nd2 {[%clk 0:02:50.8]} 17... Re8
{[%clk 0:01:59]} 18. Qf1 {[%clk 0:02:51.1]} 18... Nb4 {[%clk 0:01:43.1]} 19.
Qc4+ {[%clk 0:02:50.1]} 19... Kg7 {[%clk 0:01:34.3]} 20. a3 {[%clk 0:02:51.2]}
20... Nc6 {[%clk 0:01:32.8]} 21. Nf3 {[%clk 0:02:51.9]} 21... Ne5 {[%clk
0:01:25.7]} 22. Nxe5 {[%clk 0:02:51.3]} 22... dxe5 {[%clk 0:01:25.2]} 23. Qxc5
{[%clk 0:02:51.5]} 23... Rd8 {[%clk 0:01:18.3]} 24. Qc7+ {[%clk 0:02:52.1]}
24... Kf8 {[%clk 0:01:16.6]} 25. Qxd8+ {[%clk 0:02:53.3]} 25... Kf7 {[%clk
0:01:17.4]} 26. f4 {[%clk 0:02:53.1]} 26... exf4 {[%clk 0:01:15]} 27. Re1 {[%clk
0:02:54.3]} 27... Kg6 {[%clk 0:01:11.5]} 28. Qg8+ {[%clk 0:02:53.1]} 28... Kf5
{[%clk 0:01:10.5]} 29. Qh7+ {[%clk 0:02:53.3]} 29... Kg5 {[%clk 0:01:08.9]} 30.
h4+ {[%clk 0:02:54.4]} 30... Kxh4 {[%clk 0:01:09.1]} 31. Qxh6+ {[%clk
0:02:55.2]} 31... Kg4 {[%clk 0:01:10.5]} 32. Qg6+ {[%clk 0:02:55.6]} 32... Kh4
{[%clk 0:01:09.4]} 33. Qxf6+ {[%clk 0:02:56.5]} 33... Kg4 {[%clk 0:01:08.7]} 34.
Re5 {[%clk 0:02:56.3]} 34... a6 {[%clk 0:00:59.5]} 35. Rg5+ {[%clk 0:02:57.6]}
35... Kh4 {[%clk 0:00:55.2]} 36. Qh6# {[%clk 0:02:59.5]} 1

[Event "Open Nuevo Centro. Jornada 1"]
[Site "Chess.com"]
[Date "2020.06.19"]
[Round "1"]
[White "Lopez Mateo, Juan Carlos"]
[Black "Furio Martinez, Francisco"]
[Result "1-0"]
[WhiteElo "1930"]
[BlackElo "1144"]
[TimeControl "180+2"]
[EndTime "10:35:22 PDT"]
[Termination "Victoria de Tarantantinov por jaque mate"]

1. e4 {[%clk 0:02:54.9]} 1... e6 {[%clk 0:02:57.7]} 2. Nf3 {[%clk 0:02:56.1]}
2... d5 {[%clk 0:02:55.4]} 3. e5 {[%clk 0:02:57.6]} 3... f6 {[%clk 0:02:54.3]}
4. d4 {[%clk 0:02:53.7]} 4... fxe5 {[%clk 0:02:53.7]} 5. dxe5 {[%clk 0:02:54.5]}
5... Be7 {[%clk 0:02:51.9]} 6. Bd3 {[%clk 0:02:15.9]} 6... Nd7 {[%clk
0:02:49.8]} 7. O-O {[%clk 0:02:01.3]} 7... b6 {[%clk 0:02:49.3]} 8. c4 {[%clk
0:01:36.5]} 8... Bb7 {[%clk 0:02:45.8]} 9. Nd4 {[%clk 0:01:35.4]} 9... Nxe5
{[%clk 0:02:41.8]} 10. Qh5+ {[%clk 0:01:27.3]} 10... Nf7 {[%clk 0:02:17.1]} 11.
Nxe6 {[%clk 0:01:27.6]} 11... Qd7 {[%clk 0:02:11.8]} 12. Re1 {[%clk 0:01:26.6]}
12... Nf6 {[%clk 0:02:11.6]} 13. Qh3 {[%clk 0:01:18.8]} 13... Nd6 {[%clk
0:02:05.1]} 14. Bg6+ {[%clk 0:00:58.3]} 14... Nf7 {[%clk 0:01:57.8]} 15. Nxg7+
{[%clk 0:00:59.6]} 15... Kf8 {[%clk 0:01:51.1]} 16. Bf5 {[%clk 0:00:59]} 16...
Kxg7 {[%clk 0:01:50.4]} 17. Bxd7 {[%clk 0:00:58.8]} 17... Nxd7 {[%clk
0:01:49.1]} 18. Qxd7 {[%clk 0:00:58.5]} 18... dxc4 {[%clk 0:01:49.5]} 19. Rxe7
{[%clk 0:00:57.9]} 19... Kg6 {[%clk 0:01:45]} 20. Nc3 {[%clk 0:00:57.1]} 20...
Bxg2 {[%clk 0:01:41.6]} 21. Qg4+ {[%clk 0:00:54.9]} 21... Kf6 {[%clk 0:01:39.1]}
22. Re6# {[%clk 0:00:55.3]} 1

[Event "Open Nuevo Centro. Jornada 1"]
[Site "Chess.com"]
[Date "2020.06.19"]
[Round "1"]
[White "Amor�s P�rez, Manuel David"]
[Black "Garrido Barona, An�bal"]
[Result "1-0"]
[WhiteElo "1631"]
[BlackElo "794"]
[TimeControl "180+2"]
[EndTime "10:35:26 PDT"]
[Termination "Victoria de mpad1984 por tiempo"]

1. e4 {[%clk 0:03:01.9]} 1... e5 {[%clk 0:02:58.4]} 2. Nf3 {[%clk 0:03:02.4]}
2... Nc6 {[%clk 0:02:51.8]} 3. Bc4 {[%clk 0:03:02.7]} 3... Nf6 {[%clk
0:02:47.6]} 4. Ng5 {[%clk 0:03:02.8]} 4... Qe7 {[%clk 0:02:37.1]} 5. Bxf7+
{[%clk 0:03:02.1]} 5... Kd8 {[%clk 0:02:32.5]} 6. Bc4 {[%clk 0:03:03.6]} 6...
Nh5 {[%clk 0:02:16.8]} 7. Qxh5 {[%clk 0:03:00.2]} 7... g6 {[%clk 0:02:13.6]} 8.
Qh4 {[%clk 0:02:51.3]} 8... Bg7 {[%clk 0:02:08.8]} 9. Nf7+ {[%clk 0:02:44.9]}
9... Ke8 {[%clk 0:02:02.2]} 10. Qxe7+ {[%clk 0:02:44.1]} 10... Kxe7 {[%clk
0:02:00.3]} 11. Ng5 {[%clk 0:02:42.2]} 11... Rf8 {[%clk 0:01:49.9]} 12. O-O
{[%clk 0:02:40.2]} 12... h6 {[%clk 0:01:45.4]} 13. Nf3 {[%clk 0:02:38.7]} 13...
g5 {[%clk 0:01:32.8]} 14. h3 {[%clk 0:02:38]} 14... Nb4 {[%clk 0:01:24.5]} 15.
Bb3 {[%clk 0:02:36]} 15... d6 {[%clk 0:01:20.8]} 16. a3 {[%clk 0:02:36.7]} 16...
Nc6 {[%clk 0:01:02.4]} 17. Nc3 {[%clk 0:02:34.9]} 17... h5 {[%clk 0:00:50.1]}
18. Nd5+ {[%clk 0:02:34.4]} 18... Kd7 {[%clk 0:00:37.6]} 19. Nxg5 {[%clk
0:02:33.8]} 19... Nd4 {[%clk 0:00:06.7]} 20. d3 {[%clk 0:02:30.5]} 20... Ne2+
{[%clk 0:00:04.3]} 21. Kh1 {[%clk 0:02:30.2]} 1

[Event "Open Nuevo Centro. Jornada 1"]
[Site "Chess.com"]
[Date "2020.06.19"]
[Round "1"]
[White "Fitzpatrick Dimas  , Andrew "]
[Black "Sanchez Saez, Francisco"]
[Result "0-1"]
[WhiteElo "1395"]
[BlackElo "2273"]
[TimeControl "180+2"]
[EndTime "10:35:27 PDT"]
[Termination "Victoria de Pacman1995 por abandono"]

1. e4 {[%clk 0:02:55.2]} 1... c5 {[%clk 0:02:57.2]} 2. Nf3 {[%clk 0:02:54.5]}
2... d6 {[%clk 0:02:58.1]} 3. Nc3 {[%clk 0:02:52.9]} 3... Nf6 {[%clk 0:02:58.1]}
4. d3 {[%clk 0:02:51.4]} 4... g6 {[%clk 0:02:58.4]} 5. g3 {[%clk 0:02:50.8]}
5... Bg7 {[%clk 0:02:51.7]} 6. Bg2 {[%clk 0:02:50.7]} 6... O-O {[%clk
0:02:44.8]} 7. Be3 {[%clk 0:02:48.3]} 7... Nc6 {[%clk 0:02:42.4]} 8. O-O {[%clk
0:02:47.8]} 8... Rb8 {[%clk 0:02:37.8]} 9. a4 {[%clk 0:02:42.3]} 9... a6 {[%clk
0:02:35.8]} 10. b3 {[%clk 0:02:39.3]} 10... Ng4 {[%clk 0:02:27.4]} 11. Qe2
{[%clk 0:02:06.5]} 11... Nxe3 {[%clk 0:02:20]} 12. Qxe3 {[%clk 0:02:05.8]} 12...
Bxc3 {[%clk 0:02:20.6]} 13. Rac1 {[%clk 0:02:00.2]} 13... Bg7 {[%clk 0:02:20.6]}
14. Qg5 {[%clk 0:01:55.2]} 14... e6 {[%clk 0:02:11.4]} 15. Qxd8 {[%clk
0:01:50.3]} 15... Rxd8 {[%clk 0:02:11.7]} 16. Ng5 {[%clk 0:01:48.2]} 16... Nd4
{[%clk 0:02:10]} 17. Nf3 {[%clk 0:01:43.4]} 17... Ne2+ {[%clk 0:02:10.4]} 18.
Kh1 {[%clk 0:01:42.2]} 18... Nxc1 {[%clk 0:02:12.3]} 19. Rxc1 {[%clk 0:01:41.6]}
19... d5 {[%clk 0:02:11.5]} 20. exd5 {[%clk 0:01:41]} 20... exd5 {[%clk
0:02:00.5]} 21. c4 {[%clk 0:01:35]} 21... dxc4 {[%clk 0:01:58.8]} 22. dxc4
{[%clk 0:01:34.1]} 22... Bg4 {[%clk 0:01:58.7]} 23. Kg1 {[%clk 0:01:28.7]} 23...
Bxf3 {[%clk 0:01:57.7]} 24. Bxf3 {[%clk 0:01:29]} 24... Rd2 {[%clk 0:01:58.7]}
25. Kg2 {[%clk 0:01:28.5]} 25... Bd4 {[%clk 0:01:58.9]} 26. Rf1 {[%clk
0:01:18.9]} 26... b5 {[%clk 0:01:59.6]} 27. cxb5 {[%clk 0:01:18.4]} 27... axb5
{[%clk 0:02:01.5]} 28. axb5 {[%clk 0:01:18]} 28... Rxb5 {[%clk 0:02:00.7]} 29.
Bd5 {[%clk 0:01:18.4]} 29... Bxf2 {[%clk 0:01:59.9]} 30. Rxf2 {[%clk 0:01:17]}
30... Rxd5 {[%clk 0:02:00.3]} 0

[Event "Open Nuevo Centro. Jornada 1"]
[Site "Chess.com"]
[Date "2020.06.19"]
[Round "1"]
[White "Cebri�n Granado, Guille"]
[Black "Salvador Buiza, Victor"]
[Result "0-1"]
[WhiteElo "399"]
[BlackElo "1521"]
[TimeControl "180+2"]
[EndTime "10:35:31 PDT"]
[Termination "Victoria de TERROROSCURO666 por tiempo"]

1. e3 {[%clk 0:02:53.9]} 1... e5 {[%clk 0:02:55.6]} 2. Nf3 {[%clk 0:02:47.7]}
2... Nc6 {[%clk 0:02:56.2]} 3. Nc3 {[%clk 0:02:42.8]} 3... Nf6 {[%clk
0:02:55.3]} 4. Bc4 {[%clk 0:02:16.4]} 4... d5 {[%clk 0:02:52.3]} 5. Bb5 {[%clk
0:02:02.2]} 5... Bd6 {[%clk 0:02:50]} 6. Kf1 {[%clk 0:01:45.2]} 6... Bg4 {[%clk
0:02:32.1]} 7. Rg1 {[%clk 0:01:47.1]} 7... e4 {[%clk 0:02:25.2]} 8. Nh4 {[%clk
0:01:39.5]} 8... Bxd1 {[%clk 0:02:23.8]} 9. Ke1 {[%clk 0:01:31]} 9... Qd7 {[%clk
0:02:19.8]} 10. h3 {[%clk 0:01:21.6]} 10... Bh5 {[%clk 0:02:19.8]} 11. g4 {[%clk
0:01:03.7]} 11... Bg6 {[%clk 0:02:16.3]} 12. b4 {[%clk 0:00:49.6]} 12... Bxb4
{[%clk 0:02:12.9]} 13. a3 {[%clk 0:00:42.9]} 13... Bd6 {[%clk 0:02:13.3]} 14. a4
{[%clk 0:00:38.7]} 14... O-O {[%clk 0:02:12.5]} 15. Nxd5 {[%clk 0:00:28.6]}
15... Nxd5 {[%clk 0:02:12.4]} 16. f4 {[%clk 0:00:23.9]} 16... exf3 {[%clk
0:02:12.5]} 17. Nxg6 {[%clk 0:00:17.4]} 17... fxg6 {[%clk 0:02:11.9]} 18. h4
{[%clk 0:00:12.8]} 18... f2+ {[%clk 0:02:12.5]} 0